{"text_format":"1","workbook":"xlsx","n_sheets":2,"sheets":["Evaluación","Resultados"],"not_rendered":{"charts":0,"images":0,"macros":1,"external_links":0,"defined_names":0,"comments":0,"pivot_tables":0},"unopened":[],"bounds":{"document_bytes":16777216,"sheet_cells":100000,"rows_first":2000,"rows_last":500,"rows_between":2000,"halvings":0,"cell_chars":16384,"cell_head_chars":4096},"cells_cut":0,"cells_raw":0,"read":"whole","date_system":"1900"}

{"sheet":"Evaluación","index":0,"n_rows":49,"n_cols":8,"rows_kept":49,"cut":false,"hidden":false,"merged":[[48,2,48,5],[6,1,6,6],[8,1,8,6],[9,1,9,6],[10,1,10,6],[11,1,11,6],[12,1,12,6],[14,1,14,2],[30,1,30,2],[41,1,41,2],[29,2,29,5],[40,2,40,5]]}
[]
[]
[]
[]
[]
[]
[]
[]
[]
[]
[]
[]
[]
[]
[null,"Profesiograma",null,"No cumple","Cumple parcialmente","Cumple"]
[null,1,"Organiza y distribuye el personal a su cargo, de acuerdo con las necesidades del servicio en concordancia con los lineamientos institucionales.","X",null,null,{"$f":"IF(D16=\"x\",0,IF(E16=\"X\",1,IF(F16=\"x\",2,)))","v":0},{"$f":"IF(AND(ISBLANK(D16),ISBLANK(E16),ISBLANK(F16)),\"LLENAR\",\" \")","v":" "}]
[null,2,"Distribuye y controla la correcta utilización de los materiales de oficina.","x",null,null,{"$f":"IF(D17=\"x\",0,IF(E17=\"X\",1,IF(F17=\"x\",2,)))","v":0}]
[null,3,"Supervisa el cumplimiento de la solicitud y devolución del equipo de exploración.",null,null,"x",2]
[null,4,"Supervisa la participación de la Asistente Médica en la vigilancia y control de la asistencia a cita médica para el buen desarrollo de las funciones del servicio.",null,null,"x",2]
[null,5,"Asesora al personal a su cargo para el buen cumplimiento de sus funciones, los adiestra cuando es necesario. ",null,null,"x",2]
[null,6,"Propone y participa  en los Cursos de Capacitación.",null,null,"x",2]
[null,7,"Participa en la orientación al derechohabiente y asegurados de los programas institucionales.",null,null,"x",2]
[null,8,"Transmite al personal a su cargo la información adecuada de las disposiciones de su Jefe inmediato.",null,null,"x",2]
[null,9,"Informa y reporta a su jefe inmediato de las desviaciones a la norma del personal a su cargo. Aplica en su caso a las medidas correctivas.",null,null,"x",2]
[null,10,"Atiende a los derechohabientes y participa en la aplicación del programa de inducción al puesto de Asistente Médica; supervisa que la aplicación de normas y sistemas establecidos para la mejor atención del derechohabiente sea adecuada.",null,null,"x",2]
[null,11,"Informa de las incidencias del personal a su cargo. ",null,null,"x",2]
[null,12,"Elabora y controla los roles de descanso a que tienen derecho dentro de su jornada, las asistentes médicas, adecuándolos a las necesidades del servicio y elabora los roles de vacaciones de común acuerdo con el trabajador. ",null,null,"x",2]
[null,13,"Elabora informe de sus actividades y de las del personal a su cargo, reportándolas a su Jefe inmediato. ",null,null,"x",2]
[null,14,"Participa en los Programas de Enseñanza e Investigación de la Unidad de acuerdo a las funciones específicas de su categoría.",null,null,"x",2]
[null,null,"Total",null,null,null,{"$f":"SUM(G16:G29)","v":24}]
[null,"Genéricas",null,"No cumple","Cumple parcialmente","Cumple","Total"]
[null,15,"Análisis de problemas.","x",null,null,{"$f":"IF(D32=\"x\",0,IF(E32=\"X\",1,IF(F32=\"x\",2,)))","v":0}]
[null,16,"Aprendizaje.","x",null,null,0]
[null,17,"Control de actividades.",null,null,"x",2]
[null,18,"Iniciativa.",null,null,"x",2]
[null,19,"Liderazgo.",null,null,"x",2]
[null,20,"Organización.",null,null,"x",2]
[null,21,"Orientación al servicio.",null,null,"x",2]
[null,22,"Toma de decisiones.",null,null,"x",2]
[null,23,"Trabajo en equipo.",null,null,"x",2]
[null,null,"Total",null,null,null,{"$f":"SUM(G32:G40)","v":14}]
[null,"Institucionales",null,"No cumple","Cumple parcialmente","Cumple"]
[null,24,"Compromiso.","x",null,null,{"$f":"IF(D43=\"x\",0,IF(E43=\"X\",1,IF(F43=\"x\",2,)))","v":0}]
[null,25,"Ética.",null,null,"x",2]
[null,26,"Responsabilidad.",null,null,"x",2]
[null,27,"Conciencia Organizacional.",null,null,"x",2]
[null,28,"Equidad.",null,null,"x",2]
[null,29,"Responsabilidad Social.",null,null,"x",2]
[null,null,"Total",null,null,null,{"$f":"SUM(G43:G48)","v":10}]

{"sheet":"Resultados","index":1,"n_rows":18,"n_cols":3,"rows_kept":18,"cut":false,"hidden":false,"merged":[[8,1,8,2],[6,1,6,2],[14,1,14,2],[12,1,12,2],[11,1,11,2],[10,1,10,2],[9,1,9,2]]}
[]
[]
[]
[]
[]
[]
[]
[]
[]
[]
[]
[]
[]
[]
[]
[null,"Profesiograma",{"$f":"OBTENVALOR(Evaluación!G16:G29)","v":"Organiza y distribuye el personal a su cargo, de acuerdo con las necesidades del servicio en concordancia con los lineamientos institucionales.\n\rDistribuye y controla la correcta utilización de los materiales de oficina.\n\r"}]
[null,"Genéricas",{"$f":"OBTENVALOR(Evaluación!G32:G40)","v":"Análisis de problemas.\n\rAprendizaje.\n\r\n\rCompromiso.\n\r"}]
[null,"Institucionales",{"$f":"OBTENVALOR(Evaluación!G43:G48)","v":"Compromiso.\n\r\n\r\n\r\n\r\n\r\n\r\n\r\n\r"}]